fUSD/lending_fUSD_20240104
["ID","MTS","AMOUNT","RATE_DAILY","PERIOD"]
[310207299,1704400298069,-500.0,0.00035616,2]
[310207300,1704400298079,-618.44,0.00035616,2]
[310207301,1704400298088,-500.0,0.00035616,2]
[310207302,1704400298098,-1928.75,0.00035616,2]
[310207303,1704400298107,-500.0,0.00035616,2]
[310207304,1704400298118,-500.0,0.00035616,2]
[310207305,1704400298127,-575.7,0.00035616,2]
[310207306,1704400298136,-589.02,0.00035616,2]
[310207307,1704400298146,-2873.21,0.00035616,2]
[310207308,1704400298155,-500.0,0.00035616,2]
[310207309,1704400298165,-500.0,0.00035616,2]
[310207310,1704400298174,-501.82,0.00035616,2]
[310207311,1704400298184,-500.0,0.00035616,2]
[310207312,1704400298193,-500.0,0.00035616,2]
[310207313,1704400298203,-902.0,0.00035616,2]
[310207314,1704400298214,-500.0,0.00035616,2]
[310207315,1704400298223,-1565.07,0.00035616,2]
[310207316,1704400298234,-500.0,0.00035616,2]
[310207317,1704400298243,-1472.89,0.00035616,2]
[310207318,1704400298252,-6496.65,0.00035616,2]
[310207319,1704400298261,-500.0,0.00035616,2]
[310207320,1704400298271,-864.86,0.00035616,2]
[310207321,1704400298281,-500.0,0.00035616,2]
[310207322,1704400298291,-500.0,0.00035616,2]
[310207323,1704400298301,-500.0,0.00035616,2]
[310207324,1704400298311,-500.0,0.00035616,2]
[310207325,1704400298322,-659.36,0.00035616,2]
[310207326,1704400298332,-539.42,0.00035616,2]
[310207327,1704400298342,-2834.51,0.00035616,2]
[310207328,1704400298352,-500.0,0.00035616,2]
[310207329,1704400298362,-535.67,0.00035616,2]
[310207330,1704400298372,-500.0,0.00035616,2]
[310207331,1704400298382,-772.31,0.00035616,2]
[310207332,1704400298392,-1511.83,0.00035616,2]
[310207333,1704400298404,-730.25,0.00035616,2]
[310207334,1704400298414,-500.0,0.00035616,2]
[310207335,1704400298424,-500.0,0.00035616,2]
[310207336,1704400298434,-597.99,0.00035616,2]
[310207337,1704400298443,-1373.46,0.00035616,2]
[310207338,1704400298454,-500.0,0.00035616,2]
[310207339,1704400298465,-500.0,0.00035616,2]
[310207340,1704400298474,-500.0,0.00035616,2]
[310207341,1704400298483,-1411.58,0.00035616,2]
[310207342,1704400298493,-844.92,0.00035616,2]
[310207343,1704400298503,-1122.72,0.00035616,2]
[310207344,1704400298513,-500.0,0.00035616,2]
[310207345,1704400298522,-938.79,0.00035616,2]
[310207346,1704400298532,-700.27,0.00035616,2]
[310207347,1704400298541,-500.0,0.00035616,2]
[310207348,1704400298552,-500.0,0.00035616,2]
[310207349,1704400298562,-2603.65,0.00035616,2]
[310207350,1704400298572,-500.0,0.00035616,2]
[310207351,1704400298583,-500.0,0.00035616,2]
[310207352,1704400298592,-690.56,0.00035616,2]
[310207353,1704400298601,-500.0,0.00035616,2]
[310207354,1704400298612,-1114.57,0.00035616,2]
[310207355,1704400298621,-1863.03,0.00035616,2]
[310207356,1704400298631,-625.26,0.00035616,2]
[310207357,1704400298642,-1822.1,0.00035616,2]
[310207358,1704400298653,-500.0,0.00035616,2]
[310207359,1704400298662,-524.64,0.00035616,2]
[310207360,1704400298672,-715.91,0.00035616,2]
[310207361,1704400298681,-1359.04,0.00035616,2]
[310207362,1704400298690,-150.0,0.00035616,2]
[310207363,1704400298700,-152.79793013,0.00035642,14]
[310207364,1704400298709,-220.71423699,0.00035644,14]
[310207365,1704400298720,-152.0,0.00035694,3]
[310207366,1704400298730,-6528.34,0.000357,7]
[310207367,1704400298739,-220.71423699,0.00035702,14]
[310207368,1704400298749,-325.61963289,0.00035703,14]
[310207369,1704400298758,-5705.00226626,0.00035709,11]
[310207370,1704400298767,-412.93661815,0.00035722,7]
[310207371,1704400298777,-3287.21612338,0.00035731,4]
[310207372,1704400298786,-151.5350356,0.00035738,14]
[310207373,1704400298795,-50000.0,0.00035761,15]
[310207374,1704400298805,-325.61963289,0.00035767,14]
[310207375,1704400298815,-325.61963289,0.00035774,14]
[310207376,1704400298825,-5673.8,0.00035798,2]
[310207377,1704400298836,-3000.0,0.000358,3]
[310207378,1704400298845,-2004.14,0.000358,2]
[310207379,1704400298855,-499.088804,0.000358,2]
[310207380,1704400298865,-10041.191672,0.00035814,11]
[310207381,1704400298874,-500.0,0.00035836,7]
[310207382,1704400298884,-1474.70996629,0.0003585,8]
[310207383,1704400298893,-325.61963289,0.00035857,14]
[310207384,1704400298903,-641292.14182227,0.0003587,2]
[310207385,1704400298912,-150.0,0.0003587,2]
[310207386,1704400298922,-151.0,0.0003587,7]
[310207387,1704400298932,-151.0,0.0003587,7]
[310207388,1704400298941,-235.232057,0.0003587,7]
[310207389,1704400298950,-5239.16080258,0.00035871,11]
[310207390,1704400298960,-50000.0,0.00035871,15]
[310207391,1704400298971,-24420.68664703,0.00035871,11]
[310207392,1704400298981,-50000.0,0.00035871,15]
[310207393,1704400298990,-5009.89899892,0.00035871,11]
[310207394,1704400299000,-38741.52546523,0.00035871,11]
[310207395,1704400299009,-154.0,0.0003588,2]
[310207396,1704400299018,-466.29019262,0.00035889,2]
[310207397,1704400299028,-440.96833075,0.00035889,2]
[310207398,1704400299038,-434.3711285,0.00035889,2]
[310207399,1704400299047,-438.2013987,0.00035889,2]
[310207400,1704400299056,-356.30844383,0.00035889,2]
[310207401,1704400299066,-220.86228921,0.00035889,2]
[310207402,1704400299077,-182.94101804,0.00035889,2]
[310207403,1704400299086,-500.0,0.0003589,2]
[310207404,1704400299096,-500.0,0.0003589,2]
[310207405,1704400299105,-500.0,0.0003589,2]
[310207406,1704400299114,-500.0,0.0003589,2]
[310207407,1704400299124,-500.0,0.0003589,2]
[310207408,1704400299133,-500.0,0.0003589,2]
[310207409,1704400299143,-500.0,0.0003589,2]
[310207410,1704400299152,-500.0,0.0003589,2]
[310207411,1704400299161,-809.33,0.0003589,2]
[310207412,1704400299172,-500.0,0.0003589,2]
[310207413,1704400299182,-500.0,0.0003589,2]
[310207414,1704400299192,-500.0,0.0003589,2]
[310207415,1704400299202,-500.0,0.0003589,2]
[310207416,1704400299211,-500.0,0.0003589,2]
[310207417,1704400299222,-500.0,0.0003589,2]
[310207418,1704400299231,-500.0,0.0003589,2]
[310207419,1704400299240,-500.0,0.0003589,2]
[310207420,1704400299249,-570.2,0.0003589,2]
[310207421,1704400299259,-500.0,0.0003589,2]
[310207422,1704400299268,-500.0,0.0003589,2]
[310207423,1704400299278,-500.0,0.0003589,2]
[310207424,1704400299287,-500.0,0.0003589,2]
[310207425,1704400299296,-500.0,0.0003589,2]
[310207426,1704400299306,-511.41,0.0003589,2]
[310207427,1704400299316,-500.0,0.0003589,2]
[310207428,1704400299325,-500.0,0.0003589,2]
[310207429,1704400299334,-500.0,0.0003589,2]
[310207430,1704400299343,-826.26,0.0003589,2]
[310207431,1704400299353,-500.0,0.0003589,2]
[310207432,1704400299496,-1785.82,0.0003589,2]
[310207433,1704400299505,-541.66,0.0003589,2]
[310207434,1704400299515,-702.0,0.0003589,2]
[310207435,1704400299523,-500.0,0.0003589,2]
[310207436,1704400299535,-713.92,0.0003589,2]
[310207437,1704400299546,-508.08,0.0003589,2]
[310207438,1704400299555,-500.0,0.0003589,2]
[310207439,1704400299566,-500.0,0.0003589,2]
[310207440,1704400299575,-605.7,0.0003589,2]
[310207441,1704400299584,-500.0,0.0003589,2]
[310207442,1704400299594,-617.34,0.0003589,2]
[310207443,1704400299604,-1053.81,0.0003589,2]
[310207444,1704400299613,-500.0,0.0003589,2]
[310207445,1704400299623,-500.0,0.0003589,2]
[310207446,1704400299632,-500.0,0.0003589,2]
[310207447,1704400299642,-500.0,0.0003589,2]
[310207448,1704400299651,-500.0,0.0003589,2]
[310207449,1704400299661,-637.91,0.0003589,2]
[310207450,1704400299670,-642.96,0.0003589,2]
[310207451,1704400299681,-500.0,0.0003589,2]
[310207452,1704400299690,-500.0,0.0003589,2]
[310207453,1704400299700,-500.0,0.0003589,2]
[310207454,1704400299709,-500.0,0.0003589,2]
[310207455,1704400299719,-500.0,0.0003589,2]
[310207456,1704400299728,-500.0,0.0003589,2]
[310207457,1704400299737,-500.0,0.0003589,2]
[310207458,1704400299748,-500.0,0.0003589,2]
[310207459,1704400299757,-500.0,0.0003589,2]
[310207460,1704400299766,-500.0,0.0003589,2]
[310207461,1704400299776,-500.0,0.0003589,2]
[310207462,1704400299786,-500.0,0.0003589,2]
[310207463,1704400299796,-500.0,0.0003589,2]
[310207464,1704400299805,-583.92,0.0003589,2]
[310207465,1704400299814,-500.0,0.0003589,2]
[310207466,1704400299824,-500.0,0.0003589,2]
[310207467,1704400299833,-500.0,0.0003589,2]
[310207468,1704400299843,-644.12,0.0003589,2]
[310207469,1704400299852,-1262.62,0.0003589,2]
[310207470,1704400299864,-459.49030209,0.0003589,2]
[310207471,1704400299873,-500.0,0.0003589,2]
[310207472,1704400299883,-500.0,0.0003589,2]
[310207473,1704400299893,-501.37,0.0003589,2]
[310207474,1704400299904,-500.0,0.0003589,2]
[310207475,1704400299914,-566.90414739,0.0003589,2]
[310207476,1704400299923,-500.0,0.0003589,2]
[310207477,1704400299933,-511.59,0.0003589,2]
[310207478,1704400299942,-500.0,0.0003589,2]
[310207479,1704400299951,-500.0,0.0003589,2]
[310207480,1704400299961,-500.0,0.0003589,2]
[310207481,1704400299972,-379.04576934,0.0003589,2]
[310207482,1704400299982,-500.0,0.0003589,2]
[310207483,1704400299991,-500.0,0.0003589,2]
[310207484,1704400300000,-500.0,0.0003589,2]
[310207485,1704400300010,-500.0,0.0003589,2]
[310207486,1704400300020,-159.65,0.0003589,2]
[310207487,1704400300030,-500.0,0.0003589,2]
[310207488,1704400300041,-500.0,0.0003589,2]
[310207489,1704400300050,-500.0,0.0003589,2]
[310207490,1704400300059,-984.97,0.0003589,2]
[310207491,1704400300069,-500.0,0.0003589,2]
[310207492,1704400300078,-358.55686288,0.0003589,2]
[310207493,1704400300087,-500.0,0.0003589,2]
[310207494,1704400300096,-186.8950433,0.0003589,2]
[310207495,1704400300108,-500.0,0.0003589,2]
[310207496,1704400300117,-500.0,0.0003589,2]
[310207497,1704400300126,-500.0,0.0003589,2]
[310207498,1704400300136,-500.0,0.0003589,2]
[310207499,1704400300145,-500.0,0.0003589,2]
[310207500,1704400300154,-2813.94,0.0003589,2]
[310207501,1704400300166,-393.12,0.0003589,2]
[310207502,1704400300175,-627.78464681,0.0003589,2]
[310207503,1704400300186,-500.0,0.0003589,2]
[310207504,1704400300196,-815.95,0.0003589,2]
[310207505,1704400300207,-4226.54,0.0003589,2]
[310207506,1704400300218,-1043.97,0.0003589,2]
[310207507,1704400300230,-579.28,0.0003589,2]
[310207508,1704400300239,-500.0,0.0003589,2]
[310207509,1704400300248,-500.0,0.0003589,2]
[310207510,1704400300257,-500.0,0.0003589,2]
[310207511,1704400300266,-500.93,0.0003589,2]
[310207512,1704400300274,-1545.25,0.0003589,2]
[310207513,1704400300283,-896.7,0.0003589,2]
[310207514,1704400300292,-500.0,0.0003589,2]
[310207515,1704400300303,-500.0,0.0003589,2]
[310207516,1704400300313,-1118.72,0.0003589,2]
[310207517,1704400300322,-766.02,0.0003589,2]
[310207518,1704400300332,-525.53,0.0003589,2]
[310207519,1704400300342,-1839.95,0.0003589,2]
[310207520,1704400300352,-1961.18,0.0003589,2]
[310207521,1704400300362,-666.57,0.0003589,2]
[310207522,1704400300372,-650.88,0.0003589,2]
[310207523,1704400300382,-1047.53,0.0003589,2]
[310207524,1704400300394,-2743.39,0.0003589,2]
[310207525,1704400300403,-6488.11,0.0003589,2]
[310207526,1704400300413,-1207.75,0.0003589,2]
[310207527,1704400300422,-802.32,0.0003589,2]
[310207528,1704400300432,-500.0,0.0003589,2]
[310207529,1704400300443,-2300.26,0.0003589,2]
[310207530,1704400300452,-500.0,0.0003589,2]
[310207531,1704400300462,-564.62,0.0003589,2]
[310207532,1704400300474,-2212.73,0.0003589,2]
[310207533,1704400300484,-500.0,0.0003589,2]
[310207534,1704400300493,-500.0,0.0003589,2]
[310207535,1704400300503,-8818.63,0.0003589,2]
[310207536,1704400300512,-554.47,0.0003589,2]
[310207537,1704400300522,-500.0,0.0003589,2]
[310207538,1704400300531,-500.0,0.0003589,2]
[310207539,1704400300541,-1988.3,0.0003589,2]
[310207540,1704400300553,-500.0,0.0003589,2]
[310207541,1704400300562,-1033.94,0.0003589,2]
[310207542,1704400300571,-175.53394235,0.0003589,2]
[310207543,1704400300580,-8023.99,0.0003589,2]
[310207544,1704400300589,-2729.72,0.0003589,2]
[310207545,1704400300598,-1421.2,0.0003589,2]
[310207546,1704400300606,-2075.81,0.0003589,2]
[310207547,1704400300616,-2507.15,0.0003589,2]
[310207548,1704400300626,-500.0,0.0003589,2]
[310207549,1704400300636,-500.0,0.0003589,2]
[310207550,1704400300646,-1492.24,0.0003589,2]
[310207551,1704400300655,-500.0,0.0003589,2]
[310207552,1704400300666,-500.0,0.0003589,2]
[310207553,1704400300677,-5784.19,0.0003589,2]
[310207554,1704400300688,-1148.25,0.0003589,2]
[310207555,1704400300699,-500.0,0.0003589,2]
[310207556,1704400300710,-512.73,0.0003589,2]
[310207557,1704400300723,-500.08,0.0003589,2]
[310207558,1704400300733,-714.23,0.0003589,2]
[310207559,1704400300742,-500.0,0.0003589,2]
[310207560,1704400300752,-500.0,0.0003589,2]
[310207561,1704400300761,-582.44,0.0003589,2]
[310207562,1704400300771,-500.0,0.0003589,2]
[310207563,1704400300783,-500.0,0.0003589,2]
[310207564,1704400300795,-565.27,0.0003589,2]
[310207565,1704400300805,-799.36,0.0003589,2]
[310207566,1704400300816,-500.0,0.0003589,2]
[310207567,1704400300826,-500.0,0.0003589,2]
[310207568,1704400300835,-500.0,0.0003589,2]
[310207569,1704400300847,-1291.64,0.0003589,2]
[310207570,1704400300857,-1533.04,0.0003589,2]
[310207571,1704400300867,-654.95,0.0003589,2]
[310207572,1704400300879,-1046.38,0.0003589,2]
[310207573,1704400300889,-1168.15,0.0003589,2]
[310207574,1704400300898,-1279.36,0.0003589,2]
[310207575,1704400300909,-774.31,0.0003589,2]
[310207576,1704400300920,-1178.66,0.0003589,2]
[310207577,1704400300930,-155.01856967,0.0003589,2]
[310207578,1704400300941,-2705.72,0.0003589,2]
[310207579,1704400300950,-500.0,0.0003589,2]
[310207580,1704400300960,-540.01,0.0003589,2]
[310207581,1704400300972,-500.0,0.0003589,2]
[310207582,1704400300983,-800.68,0.0003589,2]
[310207583,1704400300993,-683.02,0.0003589,2]
[310207584,1704400301002,-1033.15,0.0003589,2]
[310207585,1704400301011,-500.0,0.0003589,2]
[310207586,1704400301021,-664.5,0.0003589,2]
[310207587,1704400301030,-5429.5,0.0003589,2]
[310207588,1704400301040,-787.99,0.0003589,2]
[310207589,1704400301049,-500.0,0.0003589,2]
[310207590,1704400301058,-1185.9,0.0003589,2]
[310207591,1704400301068,-500.0,0.0003589,2]
[310207592,1704400301077,-502.99,0.0003589,2]
[310207593,1704400301087,-803.67,0.0003589,2]
[310207594,1704400301096,-335.42563146,0.0003589,2]
[310207595,1704400301105,-703.08,0.0003589,2]
[310207596,1704400301115,-931.91,0.0003589,2]
[310207597,1704400301124,-500.0,0.0003589,2]
[310207598,1704400301133,-500.0,0.0003589,2]
[310207599,1704400301142,-3045.47,0.0003589,2]
[310207600,1704400301151,-500.0,0.0003589,2]
[310207601,1704400301161,-531.04689842,0.0003589,2]
[310207602,1704400301170,-924.28,0.0003589,2]
[310207603,1704400301179,-612.45,0.0003589,2]
[310207604,1704400301189,-500.0,0.0003589,2]
[310207605,1704400301198,-1664.58,0.0003589,2]
[310207606,1704400301207,-1719.17,0.0003589,2]
[310207607,1704400301217,-500.0,0.0003589,2]
[310207608,1704400301227,-650.67,0.0003589,2]
[310207609,1704400301236,-837.7,0.0003589,2]
[310207610,1704400301246,-651.85,0.0003589,2]
[310207611,1704400301255,-1763.88,0.0003589,2]
[310207612,1704400301266,-500.0,0.0003589,2]
[310207613,1704400301275,-500.0,0.0003589,2]
[310207614,1704400301285,-5455.26,0.0003589,2]
[310207615,1704400301294,-595.32,0.0003589,2]
[310207616,1704400301302,-500.0,0.0003589,2]
[310207617,1704400301312,-864.85,0.0003589,2]
[310207618,1704400301322,-500.0,0.0003589,2]
[310207619,1704400301332,-618.44,0.0003589,2]
[310207620,1704400301341,-500.0,0.0003589,2]
[310207621,1704400301351,-1928.75,0.0003589,2]
[310207622,1704400301360,-500.0,0.0003589,2]
[310207623,1704400301369,-500.0,0.0003589,2]
[310207624,1704400301379,-575.7,0.0003589,2]
[310207625,1704400301389,-589.02,0.0003589,2]
[310207626,1704400301400,-2873.21,0.0003589,2]
[310207627,1704400301410,-500.0,0.0003589,2]
[310207628,1704400301419,-500.0,0.0003589,2]
[310207629,1704400301429,-501.82,0.0003589,2]
[310207630,1704400301439,-500.0,0.0003589,2]
[310207631,1704400301448,-500.0,0.0003589,2]
[310207632,1704400301458,-902.0,0.0003589,2]
[310207633,1704400301467,-500.0,0.0003589,2]
[310207634,1704400301477,-1565.07,0.0003589,2]
[310207635,1704400301487,-500.0,0.0003589,2]
[310207636,1704400301497,-1472.89,0.0003589,2]
[310207637,1704400301508,-6496.65,0.0003589,2]
[310207638,1704400301519,-500.0,0.0003589,2]
[310207639,1704400301528,-864.86,0.0003589,2]
[310207640,1704400301538,-500.0,0.0003589,2]
[310207641,1704400301547,-500.0,0.0003589,2]
[310207642,1704400301557,-500.0,0.0003589,2]
[310207643,1704400301567,-500.0,0.0003589,2]
[310207644,1704400301578,-659.36,0.0003589,2]
[310207645,1704400301587,-539.42,0.0003589,2]
[310207646,1704400301597,-2834.51,0.0003589,2]
[310207647,1704400301607,-500.0,0.0003589,2]
[310207648,1704400301731,-535.67,0.0003589,2]
[310207649,1704400301752,-500.0,0.0003589,2]
[310207650,1704400301762,-772.31,0.0003589,2]
[310207651,1704400301771,-1511.83,0.0003589,2]
[310207652,1704400301781,-730.25,0.0003589,2]
[310207653,1704400301792,-500.0,0.0003589,2]
[310207654,1704400301802,-500.0,0.0003589,2]
[310207655,1704400301812,-597.99,0.0003589,2]
[310207656,1704400301823,-1373.46,0.0003589,2]
[310207657,1704400301832,-500.0,0.0003589,2]
[310207658,1704400301841,-500.0,0.0003589,2]
[310207659,1704400301851,-500.0,0.0003589,2]
[310207660,1704400301860,-1411.58,0.0003589,2]
[310207661,1704400301869,-844.92,0.0003589,2]
[310207662,1704400301880,-1122.72,0.0003589,2]
[310207663,1704400301889,-500.0,0.0003589,2]
[310207664,1704400301901,-938.79,0.0003589,2]
[310207665,1704400301911,-700.27,0.0003589,2]
[310207666,1704400301921,-500.0,0.0003589,2]
[310207667,1704400301930,-500.0,0.0003589,2]
[310207668,1704400301941,-2603.65,0.0003589,2]
[310207669,1704400301950,-500.0,0.0003589,2]
[310207670,1704400301959,-690.56,0.0003589,2]
[310207671,1704400301969,-500.0,0.0003589,2]
[310207672,1704400301979,-500.0,0.0003589,2]
[310207673,1704400301988,-1114.57,0.0003589,2]
[310207674,1704400301998,-1863.03,0.0003589,2]
[310207675,1704400302008,-625.26,0.0003589,2]
[310207676,1704400302018,-1822.1,0.0003589,2]
[310207677,1704400302027,-500.0,0.0003589,2]
[310207678,1704400302037,-524.64,0.0003589,2]
[310207679,1704400302046,-715.91,0.0003589,2]
[310207680,1704400302056,-1359.04,0.0003589,2]
[310207681,1704400302065,-288.038007,0.0003589,7]
[310207682,1704400302074,-115762.57371422,0.000359,6]
[310207683,1704400302084,-150.0,0.000359,25]
[310207684,1704400302093,-6488.8674879,0.00035934,2]
[310207685,1704400302103,-220.71423699,0.00035939,14]
[310207686,1704400302113,-220.71423699,0.0003594,14]
[310207687,1704400302122,-2000.0,0.00035949,2]
[310207688,1704400302131,-2000.0,0.00035949,2]
[310207689,1704400302140,-199.44,0.00035982,2]
[310207690,1704400302150,-300.0,0.00035987,15]
[310207691,1704400302159,-200.0,0.00035987,14]
[310207692,1704400302168,-2765.343369,0.00035989,19]
[310207693,1704400302178,-100000.0,0.00036,6]
[310207694,1704400302187,-30491.79495667,0.00036,3]
[310207695,1704400302196,-24753.36952102,0.00036,4]
[310207696,1704400302206,-760.92227324,0.00036,4]
[310207697,1704400302215,-2000.0,0.00036,4]
[310207698,1704400302226,-19378.48966482,0.00036,2]
[310207699,1704400302237,-485.85476594,0.00036,2]
[310207700,1704400302246,-2000.0,0.00036,18]
[310207701,1704400302254,-5000.0,0.00036,2]
[310207702,1704400302263,-1798.63,0.00036,2]
[310207703,1704400302273,-220.71423699,0.00036015,14]
[310207704,1704400302282,-5000.0,0.00036025,2]
[310207705,1704400302291,-3692.87,0.0003605,2]
[310207706,1704400302300,-153.84,0.00036056,2]
[310207707,1704400302310,-220.71423699,0.00036074,14]
[310207708,1704400302319,-220.71423699,0.00036075,14]
[310207709,1704400302329,-500.0,0.00036164,2]
[310207710,1704400302339,-500.0,0.00036164,2]
[310207711,1704400302348,-500.0,0.00036164,2]
[310207712,1704400302357,-501.87690378,0.00036164,2]
[310207713,1704400302368,-500.0,0.00036164,2]
[310207714,1704400302380,-382.74695294,0.00036164,2]
[310207715,1704400302390,-413.37,0.00036164,2]
[310207716,1704400302402,-809.33,0.00036164,2]
[310207717,1704400302411,-203.67320068,0.00036164,2]
[310207718,1704400302420,-500.0,0.00036164,2]
[310207719,1704400302431,-500.0,0.00036164,2]
[310207720,1704400302440,-150.79889266,0.00036164,2]
[310207721,1704400302450,-601.03619828,0.00036164,2]
[310207722,1704400302462,-500.0,0.00036164,2]
[310207723,1704400302473,-500.0,0.00036164,2]
[310207724,1704400302485,-500.0,0.00036164,2]
[310207725,1704400302493,-570.2,0.00036164,2]
[310207726,1704400302503,-500.0,0.00036164,2]
[310207727,1704400302513,-500.0,0.00036164,2]
[310207728,1704400302523,-500.0,0.00036164,2]
[310207729,1704400302532,-500.0,0.00036164,2]
[310207730,1704400302542,-500.0,0.00036164,2]
[310207731,1704400302551,-511.41,0.00036164,2]
[310207732,1704400302560,-581.17491463,0.00036164,2]
[310207733,1704400302569,-500.0,0.00036164,2]
[310207734,1704400302580,-500.0,0.00036164,2]
[310207735,1704400302590,-826.26,0.00036164,2]
[310207736,1704400302602,-500.0,0.00036164,2]
[310207737,1704400302611,-1785.82,0.00036164,2]
[310207738,1704400302620,-541.66,0.00036164,2]
[310207739,1704400302629,-702.0,0.00036164,2]
[310207740,1704400302638,-500.0,0.00036164,2]
[310207741,1704400302647,-713.92,0.00036164,2]
[310207742,1704400302656,-508.08,0.00036164,2]
[310207743,1704400302665,-500.0,0.00036164,2]
[310207744,1704400302674,-500.0,0.00036164,2]
[310207745,1704400302683,-605.7,0.00036164,2]
[310207746,1704400302693,-500.0,0.00036164,2]
[310207747,1704400302702,-617.34,0.00036164,2]
[310207748,1704400302711,-1053.81,0.00036164,2]
[310207749,1704400302721,-500.0,0.00036164,2]
[310207750,1704400302731,-500.0,0.00036164,2]
[310207751,1704400302742,-500.0,0.00036164,2]
[310207752,1704400302751,-500.0,0.00036164,2]
[310207753,1704400302761,-500.0,0.00036164,2]
[310207754,1704400302770,-637.91,0.00036164,2]
[310207755,1704400302780,-642.96,0.00036164,2]
[310207756,1704400302789,-500.0,0.00036164,2]
[310207757,1704400302798,-500.0,0.00036164,2]
[310207758,1704400302807,-500.0,0.00036164,2]
[310207759,1704400302817,-500.0,0.00036164,2]
[310207760,1704400302826,-500.0,0.00036164,2]
[310207761,1704400302835,-274.85668277,0.00036164,2]
[310207762,1704400302845,-500.0,0.00036164,2]
[310207763,1704400302854,-500.0,0.00036164,2]
[310207764,1704400302866,-500.0,0.00036164,2]
[310207765,1704400302877,-500.0,0.00036164,2]
[310207766,1704400302886,-500.0,0.00036164,2]
[310207767,1704400302896,-500.0,0.00036164,2]
[310207768,1704400302906,-500.0,0.00036164,2]
[310207769,1704400302915,-583.92,0.00036164,2]
[310207770,1704400302925,-500.0,0.00036164,2]
[310207771,1704400302934,-500.0,0.00036164,2]
[310207772,1704400302944,-644.12,0.00036164,2]
[310207773,1704400302953,-1262.62,0.00036164,2]
[310207774,1704400302962,-500.0,0.00036164,2]
[310207775,1704400302972,-500.0,0.00036164,2]
[310207776,1704400302982,-501.37,0.00036164,2]
[310207777,1704400302991,-500.0,0.00036164,2]
[310207778,1704400303002,-500.0,0.00036164,2]
[310207779,1704400303011,-511.59,0.00036164,2]
[310207780,1704400303020,-500.0,0.00036164,2]
[310207781,1704400303030,-500.0,0.00036164,2]
[310207782,1704400303041,-500.0,0.00036164,2]
[310207783,1704400303050,-500.0,0.00036164,2]
[310207784,1704400303059,-500.0,0.00036164,2]
[310207785,1704400303069,-500.0,0.00036164,2]
[310207786,1704400303079,-500.0,0.00036164,2]
[310207787,1704400303089,-159.65,0.00036164,2]
[310207788,1704400303098,-500.0,0.00036164,2]
[310207789,1704400303109,-581.50944577,0.00036164,2]
[310207790,1704400303119,-500.0,0.00036164,2]
[310207791,1704400303128,-984.97,0.00036164,2]
[310207792,1704400303138,-500.0,0.00036164,2]
[310207793,1704400303147,-402.51271127,0.00036164,2]
[310207794,1704400303156,-500.0,0.00036164,2]
[310207795,1704400303166,-500.0,0.00036164,2]
[310207796,1704400303176,-500.0,0.00036164,2]
[310207797,1704400303185,-500.0,0.00036164,2]
[310207798,1704400303196,-2813.94,0.00036164,2]